[Event "GER-ch Youth U12M 2018"]
[Site "Willingen"]
[Date "2018.05.23"]
[Round "7"]
[White "Schubert, Nikita"]
[Black "Eilenberg, Jonas"]
[Result "1/2-1/2"]
[ECO "D30"]
[WhiteElo "1802"]
[BlackElo "1852"]
[Annotator "NA RC"]
[PlyCount "84"]
[EventDate "2018.05.19"]
[EventType "swiss"]
[EventCountry "GER"]
[SourceTitle "playchess.com"]
[Source "ChessBase"]
[SourceQuality "1"]
[TimeControl "40/4500+30:900+30"]

1. d4 {[%emt 0:00:00]} d5 {[%emt 0:00:31]} 2. c4 {[%emt 0:00:00]} e6 {[%emt 0:00:17]} 3. Nf3 {[%emt 0:00:05]} c6 {[%emt 0:00:28]} 4. g3 {[%emt 0:00:53]} dxc4 {[%emt 0:00:51]} 5. Bg2 {[%emt 0:00:26]} Nf6 {[%emt 0:00:07]} 6. Ne5 {[%emt 0:02:10]} Be7 {[%emt 0:00:49]} 7. O-O {[%emt 0:01:44]} O-O {[%emt 0:00:17]} 8. Nc3 {[%emt 0:01:53]} Nbd7 {[%emt 0:01:38]} 9. Nxc4 {[%emt 0:00:21]} Nb6 {[%emt 0:01:58] E06: Katalanisch} (9... c5 10. Bf4 cxd4 11. Qxd4 Nb6 12. Qxd8 Bxd8 13. Ne3 Re8 14. Bd6 Be7 15. Rfd1 Bxd6 16. Rxd6 Rb8 17. Nb5 {1-0 (40) Stupak,K (2588)-Tokranovs,D (2348) Katowice 2017}) 10. Ne5 {[%emt 0:07:07]} Nbd5 {[%emt 0:07:14]} 11. e4 {[%emt 0:01:02]} Nxc3 {[%emt 0:01:24]} 12. bxc3 {[%emt 0:00:01]} Nd7 {[%emt 0:02:35]} 13. Bf4 $146 {[%emt 0:04:24]} ({Vorgänger:} 13. Nxd7 Bxd7 14. Rb1 b5 15. e5 c5 16. Qg4 Kh8 17. Be4 {1-0 (38) Atkinson,P (2189)-Fien,A (2150) Germany 2011}) 13... Nxe5 {[%emt 0:05:15]} 14. Bxe5 {[%emt 0:00:30]} f6 {[%emt 0:06:03]} (14... g5 $11) 15. Bf4 {[%emt 0:00:52]} Qa5 {[%emt 0:00:52]} 16. Qb3 {[%emt 0:01:26]} Kh8 {[%emt 0:00:37]} 17. e5 {[%emt 0:08:20]} f5 {[%emt 0:01:28]} 18. Bd2 {[%emt 0:02:27]} Qc7 {[%emt 0:02:50]} 19. Rfe1 {[%emt 0:05:39]} a5 {[%emt 0:02:41]} 20. a4 {[%emt 0:04:18]} Rd8 {[%emt 0:04:51]} 21. Qa2 {[%emt 0:07:41]} Ra6 {[%emt 0:07:55]} 22. Bf1 {[%emt 0:03:09]} Ra8 {[%emt 0:00:35]} 23. Bg2 {[%emt 0:02:36]} Ra6 {[%emt 0:00:15]} 24. Bf1 {[%emt 0:00:03]} Ra8 {[%emt 0:00:02]} 25. Bc4 {[%emt 0:00:20]} Qd7 {[%emt 0:00:27]} 26. Rab1 {[%emt 0:01:18]} Re8 {[%emt 0:07:38]} 27. Bc1 {[%emt 0:01:02]} Bd8 {[%emt 0:01:14]} 28. Ba3 {[%emt 0:03:27]} Bc7 {[%emt 0:01:01]} 29. Bc5 {[%emt 0:04:51]} Qd8 {[%emt 0:02:31]} 30. Qb3 {[%emt 0:03:41]} Qg5 {[%emt 0:03:15]} 31. f4 {[%emt 0:01:32]} Qg6 {[%emt 0:01:23]} 32. Be2 {[%emt 0:01:29]} Qf7 {[%emt 0:01:41]} 33. Bf3 {[%emt 0:05:24]} Ra6 {[%emt 0:02:32]} 34. Be2 {[%emt 0:00:32]} Ra8 {[%emt 0:00:05]} 35. Kh1 {[%emt 0:01:16]} b6 {[%emt 0:01:44]} 36. Bd6 {[%emt 0:05:28]} Rb8 {[%emt 0:03:28]} 37. Bxc7 {[%emt 0:02:34]} Qxc7 {[%emt 0:01:03]} 38. c4 {[%emt 0:01:33]} Ba6 {[%emt 0:07:02]} 39. Kg1 {[%emt 0:01:28]} Qa7 {[%emt 0:00:49]} 40. Qc3 {[%emt 0:01:06]} h6 {[%emt 0:19:43]} 41. Qe3 $16 {[%emt 0:08:03]} Red8 {[%emt 0:00:00]} 42. Red1 {[%emt 0:00:21]} Qa8 {[%emt 0:00:00]} 1/2-1/2

[Event "GER-ch Youth U12M 2018"]
[Site "Willingen"]
[Date "2018.05.23"]
[Round "7"]
[White "May, Ben-Iven"]
[Black "Haack, Kevin"]
[Result "0-1"]
[ECO "B70"]
[WhiteElo "1769"]
[BlackElo "1846"]
[Annotator "NA RC"]
[PlyCount "83"]
[EventDate "2018.05.19"]
[EventType "swiss"]
[EventCountry "GER"]
[SourceTitle "playchess.com"]
[Source "ChessBase"]
[SourceQuality "1"]
[TimeControl "40/4500+30:900+30"]

1. e4 {[%emt 0:00:00]} c5 {[%emt 0:00:09]} 2. Nf3 {[%emt 0:00:22]} d6 {[%emt 0:00:06]} 3. d4 {[%emt 0:00:54]} cxd4 {[%emt 0:00:09]} 4. Nxd4 {[%emt 0:00:08]} Nf6 {[%emt 0:00:14] LiveBook: 94506 Games} 5. Nc3 {[%emt 0:01:10]} g6 {[%emt 0:00:18]} 6. Be2 {[%emt 0:02:31]} Bg7 {[%emt 0:00:11]} 7. O-O {[%emt 0:01:20]} O-O {[%emt 0:00:44]} 8. Be3 {[%emt 0:01:49]} Nc6 {[%emt 0:02:13]} 9. f4 {[%emt 0:03:13]} Bd7 {[%emt 0:03:01]} 10. Kh1 {[%emt 0:03:11]} Rc8 {[%emt 0:02:47]} 11. Qd2 {[%emt 0:05:09]} a6 {[%emt 0:10:48]} 12. a4 {[%emt 0:09:41]} Bg4 {[%emt 0:07:01] B73: Sicilian Dragon: Classical System without 9 Nb3} (12... Qc7 13. Nb3 Na5 14. Nxa5 Qxa5 15. Bf3 Be6 16. Rfd1 Rc4 17. Qf2 Ng4 18. Bxg4 Bxg4 19. Rd3 Bxc3 20. Rxc3 Rxe4 21. h3 Bd7 22. Bd4 Qf5 23. Rf1 Bxa4 24. Rc7 Bc6 25. Kh2 Qd5 {0-1 (25) Tancsa,R (2205)-Tolnai,T (2508) Hungary 2002}) 13. Rad1 {[%emt 0:08:07]} Bxe2 $146 {[%emt 0:00:19]} ({Predecessor:} 13... Qd7 14. f5 Ne5 15. fxg6 fxg6 16. Bh6 Bxe2 17. Ndxe2 Nc4 18. Qc1 Bxh6 19. Qxh6 Nxb2 20. Rd4 {1-0 (30) Musiatowicz,P (1909)-Mankowski,S Mazowsze 2009}) 14. Qxe2 {[%emt 0:00:39]} Qa5 {[%emt 0:07:59]} 15. Nb3 {[%emt 0:07:48]} Qc7 {[%emt 0:04:00]} 16. g4 {[%emt 0:06:44]} Nb4 {[%emt 0:09:25]} 17. Rf2 {[%emt 0:09:26]} Rfd8 {[%emt 0:03:40]} 18. a5 {[%emt 0:02:39]} Nd7 {[%emt 0:04:53]} 19. Rdf1 {[%emt 0:05:53]} Bxc3 {[%emt 0:03:15]} 20. bxc3 {[%emt 0:00:11]} Qxc3 {[%emt 0:00:21]} 21. Nd4 {[%emt 0:04:12]} Nf6 {[%emt 0:03:53]} 22. Qf3 {[%emt 0:01:43]} Nxg4 {[%emt 0:01:36]} 23. Qxg4 {[%emt 0:00:22]} Qxe3 {[%emt 0:00:11]} 24. f5 {[%emt 0:00:52] [#]} g5 $4 {[%emt 0:07:53]} (24... Qxd4 25. fxg6 fxg6 26. Qe6+ Kh8 27. Qxe7 $11) (24... h5 $1 $19 {[%cal Rh5g4] and all is fine.} 25. Qf3 Qxd4 26. fxg6 fxg6) 25. f6 {[%emt 0:01:26]} e5 {[%emt 0:02:57]} 26. Nf5 {[%emt 0:00:18]} Qc5 {[%emt 0:06:01]} 27. Qxg5+ {[%emt 0:04:57]} Kf8 {[%emt 0:00:04]} 28. Qg7+ {[%emt 0:00:52]} Ke8 {[%emt 0:00:04]} 29. Qg8+ {[%emt 0:00:06]} Kd7 {[%emt 0:00:05]} 30. Qxf7+ {[%emt 0:00:05]} Kc6 {[%emt 0:00:08]} 31. Ne7+ {[%emt 0:00:28]} Kc7 {[%emt 0:01:26]} 32. Nxc8+ $18 {[%emt 0:00:25]} Kxc8 {[%emt 0:00:06]} 33. Qe6+ {[%emt 0:00:13]} Kb8 {[%emt 0:01:53]} 34. f7 {[%emt 0:00:29]} Qc6 {[%emt 0:01:13]} 35. f8=Q {[%emt 0:00:38]} Qxe4+ {[%emt 0:00:07]} 36. Qf3 {[%emt 0:00:16]} Qd4 {[%emt 0:01:54]} 37. c3 {[%emt 0:00:30]} Qc5 {[%emt 0:00:18]} 38. cxb4 {[%emt 0:00:10]} Qb5 {[%emt 0:00:29]} 39. Qed5 {[%emt 0:01:17]} Qd7 {[%emt 0:00:19]} 40. b5 {[%emt 0:01:00]} Ka7 {[%emt 0:15:29]} 41. bxa6 {[%emt 0:15:27]} bxa6 {[%emt 0:00:05]} 42. Qff7 {[%emt 0:00:07]} 0-1

[Event "GER-ch Youth U12M 2018"]
[Site "Willingen"]
[Date "2018.05.23"]
[Round "7"]
[White "Bakiev, Diyor"]
[Black "Hoke, Adrian Neo"]
[Result "1-0"]
[ECO "C52"]
[WhiteElo "1752"]
[BlackElo "1628"]
[Annotator "NA RC"]
[PlyCount "65"]
[EventDate "2018.05.19"]
[EventType "swiss"]
[EventCountry "GER"]
[SourceTitle "playchess.com"]
[Source "ChessBase"]
[SourceQuality "1"]
[TimeControl "40/4500+30:900+30"]

1. e4 {[%emt 0:00:00]} e5 {[%emt 0:00:07]} 2. Nf3 {[%emt 0:00:00]} Nc6 {[%emt 0:00:08]} 3. Bc4 {[%emt 0:00:00]} Bc5 {[%emt 0:00:08]} 4. b4 {[%emt 0:00:07]} Bxb4 {[%emt 0:01:19]} 5. c3 {[%emt 0:00:14]} Ba5 {[%emt 0:00:21]} 6. d4 {[%emt 0:00:17]} exd4 {[%emt 0:02:00]} 7. O-O {[%emt 0:00:25]} d6 {[%emt 0:01:14]} 8. cxd4 {[%emt 0:01:12]} Nge7 {[%emt 0:04:29]} 9. Ng5 {[%emt 0:03:00]} d5 {[%emt 0:02:43]} 10. exd5 {[%emt 0:00:48]} Nxd5 {[%emt 0:01:01]} 11. Nxf7 {[%emt 0:01:58]} Kxf7 {[%emt 0:01:13]} 12. Qf3+ {[%emt 0:00:19]} Ke8 {[%emt 0:02:56]} 13. Bxd5 {[%emt 0:00:32]} Rf8 {[%emt 0:02:25]} 14. Bxc6+ {[%emt 0:02:06]} bxc6 {[%emt 0:00:10]} 15. Qxc6+ {[%emt 0:00:30]} Bd7 {[%emt 0:00:06]} 16. Qe4+ {[%emt 0:00:11]} Kf7 {[%emt 0:00:17]} 17. Qd5+ {[%emt 0:02:42]} Be6 {[%emt 0:00:08]} 18. Qxa5 {[%emt 0:00:31]} Qxd4 {[%emt 0:00:23]} 19. Qc3 {[%emt 0:01:22]} Qd7 {[%emt 0:01:00]} 20. Bb2 {[%emt 0:01:35]} Kg8 {[%emt 0:00:36]} 21. Nd2 {[%emt 0:01:50]} Rf5 {[%emt 0:03:26]} 22. Nb3 {[%emt 0:05:19]} Rg5 {[%emt 0:03:44]} 23. Rad1 {[%emt 0:06:03]} Bd5 {[%emt 0:01:05]} 24. f3 {[%emt 0:02:16]} Rf8 {[%emt 0:01:42]} 25. Qe3 {[%emt 0:05:46]} Rg6 {[%emt 0:02:38]} 26. Rde1 {[%emt 0:08:38]} Qh3 {[%emt 0:01:13]} 27. Qd2 {[%emt 0:03:32]} Bxf3 {[%emt 0:09:07]} 28. Rf2 {[%emt 0:02:54]} Bc6 {[%emt 0:06:22]} 29. Rxf8+ {[%emt 0:01:33]} Kxf8 {[%emt 0:00:02]} 30. Ba3+ {[%emt 0:00:38]} Kf7 {[%emt 0:02:17]} 31. Re7+ {[%emt 0:01:13]} Kf6 {[%emt 0:00:52]} 32. Qf4+ {[%emt 0:00:22]} Qf5 {[%emt 0:00:09]} 33. Rf7+ {[%emt 0:00:23]} 1-0

[Event "GER-ch Youth U12M 2018"]
[Site "Willingen"]
[Date "2018.05.23"]
[Round "7"]
[White "Hecht, Jonas Christian"]
[Black "Stepanov, Maximilian"]
[Result "1-0"]
[ECO "B06"]
[WhiteElo "1713"]
[BlackElo "1300"]
[Annotator "NA RC"]
[PlyCount "127"]
[EventDate "2018.05.19"]
[EventType "swiss"]
[EventCountry "GER"]
[SourceTitle "playchess.com"]
[Source "ChessBase"]
[SourceQuality "1"]
[TimeControl "40/4500+30:900+30"]

1. e4 {[%emt 0:00:00]} d6 {[%emt 0:00:10]} 2. d4 {[%emt 0:00:00]} g6 {[%emt 0:00:16]} 3. Nc3 {[%emt 0:00:00]} Bg7 {[%emt 0:00:11]} 4. Be3 {[%emt 0:00:08]} Nd7 {[%emt 0:00:28]} 5. Qd2 {[%emt 0:01:10]} e6 {[%emt 0:00:42]} 6. O-O-O {[%emt 0:00:20]} c6 {[%emt 0:00:50]} 7. Bd3 {[%emt 0:03:32]} Qc7 {[%emt 0:01:48]} 8. g4 {[%emt 0:03:42]} b5 {[%emt 0:00:49]} 9. Kb1 {[%emt 0:01:39]} Bb7 {[%emt 0:01:19]} 10. f3 {[%emt 0:01:51]} a5 {[%emt 0:02:20]} 11. h4 {[%emt 0:00:38]} a4 {[%emt 0:06:10]} 12. Nce2 {[%emt 0:05:58]} Ba6 {[%emt 0:05:55]} 13. h5 {[%emt 0:06:24]} c5 {[%emt 0:01:44]} 14. c3 {[%emt 0:02:50]} Qb7 {[%emt 0:11:30]} 15. dxc5 {[%emt 0:05:27]} dxc5 {[%emt 0:00:28]} 16. Bc2 {[%emt 0:00:12]} Ne7 {[%emt 0:10:32]} 17. Nf4 {[%emt 0:07:06]} Qc6 {[%emt 0:05:25]} 18. h6 {[%emt 0:04:14]} Be5 {[%emt 0:00:59]} 19. Nge2 {[%emt 0:12:15]} Nb6 {[%emt 0:00:31]} 20. Nd3 {[%emt 0:01:35]} Nc4 {[%emt 0:02:41]} 21. Qc1 {[%emt 0:00:42]} Bd6 {[%emt 0:02:54]} 22. Bf2 Rb8 {[%emt 0:01:08]} 23. b3 {[%emt 0:16:12]} axb3 {[%emt 0:01:14]} 24. axb3 {[%emt 0:00:08]} Ne5 {[%emt 0:03:01]} 25. Nxe5 {[%emt 0:01:39]} Bxe5 {[%emt 0:00:10]} 26. Qe3 {[%emt 0:00:18]} c4 {[%emt 0:02:26]} 27. b4 {[%emt 0:00:24]} Bb7 {[%emt 0:05:40]} 28. Nd4 {[%emt 0:01:38]} Qa6 {[%emt 0:00:16]} 29. Kb2 {[%emt 0:00:11]} Nc6 {[%emt 0:02:53]} 30. Nxc6 {[%emt 0:01:43]} Qxc6 {[%emt 0:00:15]} 31. Qc5 {[%emt 0:00:29]} Qxc5 {[%emt 0:03:57]} 32. Bxc5 {[%emt 0:00:01]} Rd8 {[%emt 0:00:43]} 33. Bb6 {[%emt 0:03:27]} Rd7 {[%emt 0:00:48]} 34. Rxd7 {[%emt 0:01:08]} Kxd7 {[%emt 0:00:50]} 35. Rd1+ {[%emt 0:00:01]} Kc6 {[%emt 0:00:18]} 36. Bc5 {[%emt 0:00:25]} Bf4 {[%emt 0:00:25]} 37. Be7 {[%emt 0:01:29]} Bxh6 {[%emt 0:00:23]} 38. Rh1 {[%emt 0:00:03]} Bf4 {[%emt 0:00:12]} 39. Bf6 {[%emt 0:00:09]} Rc8 {[%emt 0:02:12]} 40. Rxh7 {[%emt 0:00:14]} Rc7 {[%emt 0:15:14]} 41. e5 {[%emt 0:18:02]} Kb6 {[%emt 0:00:34]} 42. Bd8 {[%emt 0:00:22]} Bxe5 {[%emt 0:00:32]} 43. Rxf7 {[%emt 0:00:29]} Kc6 {[%emt 0:00:11]} 44. Be4+ {[%emt 0:02:51]} Kb6 {[%emt 0:00:31]} 45. Bxg6 {[%emt 0:00:20]} Bd5 {[%emt 0:00:31]} 46. Be4 {[%emt 0:00:00]} Kc6 {[%emt 0:00:00]} 47. Bxd5+ {[%emt 0:00:00]} exd5 {[%emt 0:00:00]} 48. Bxc7 {[%emt 0:00:00]} Bxc7 {[%emt 0:00:00]} 49. g5 {[%emt 0:00:00]} Be5 {[%emt 0:00:00]} 50. g6 {[%emt 0:00:00]} d4 {[%emt 0:00:00]} 51. cxd4 {[%emt 0:00:00]} Bxd4+ {[%emt 0:00:00]} 52. Kc2 {[%emt 0:00:00]} Be5 {[%emt 0:00:00]} 53. g7 {[%emt 0:00:00]} Bxg7 {[%emt 0:00:00]} 54. Rxg7 {[%emt 0:00:00]} Kd5 {[%emt 0:00:00]} 55. Rg5+ {[%emt 0:00:00]} Kd4 {[%emt 0:00:00]} 56. Rxb5 {[%emt 0:00:00]} c3 {[%emt 0:00:00]} 57. f4 {[%emt 0:00:00]} Kc4 {[%emt 0:00:00]} 58. Rh5 {[%emt 0:00:00]} Kxb4 {[%emt 0:00:00]} 59. f5 {[%emt 0:00:00]} Kc4 {[%emt 0:00:00]} 60. f6 {[%emt 0:00:00]} Kd4 {[%emt 0:00:00]} 61. f7 {[%emt 0:00:00]} Ke4 {[%emt 0:00:00]} 62. f8=R {[%emt 0:00:00]} Kd4 {[%emt 0:00:00]} 63. Re8 {[%emt 0:00:00]} Kc4 {[%emt 0:00:00]} 64. Re4# {Kd5} 1-0

[Event "GER-ch Youth U12M 2018"]
[Site "Willingen"]
[Date "2018.05.23"]
[Round "7"]
[White "Prieb, Robert"]
[Black "Gluma, Christian"]
[Result "1/2-1/2"]
[ECO "D37"]
[WhiteElo "1709"]
[BlackElo "1601"]
[Annotator "NA RC"]
[PlyCount "45"]
[EventDate "2018.05.19"]
[EventType "swiss"]
[EventCountry "GER"]
[SourceTitle "playchess.com"]
[Source "ChessBase"]
[SourceQuality "1"]
[TimeControl "40/4500+30:900+30"]

1. d4 {[%emt 0:00:00]} d5 {[%emt 0:00:08]} 2. c4 {[%emt 0:00:00]} e6 {[%emt 0:00:12]} 3. Nc3 {[%emt 0:00:33]} Nf6 {[%emt 0:00:09]} 4. Nf3 {[%emt 0:00:16]} Be7 {[%emt 0:00:23]} 5. Bf4 {[%emt 0:00:23]} O-O {[%emt 0:00:59]} 6. e3 {[%emt 0:00:35]} Nbd7 {[%emt 0:01:01]} 7. c5 {[%emt 0:00:28]} Ne4 {[%emt 0:00:31]} 8. Qc2 {[%emt 0:01:05]} f5 {[%emt 0:00:42]} 9. Bd3 {[%emt 0:02:05]} c6 {[%emt 0:03:16]} 10. O-O {[%emt 0:01:16]} g5 {[%emt 0:02:58]} 11. Bg3 {[%emt 0:01:09]} h5 {[%emt 0:03:35]} 12. Ne5 {[%emt 0:03:50]} Nxg3 {[%emt 0:04:39]} 13. Nxd7 {[%emt 0:00:40]} Nxf1 {[%emt 0:02:05]} 14. Nxf8 {[%emt 0:00:25]} Nxe3 {[%emt 0:04:26]} 15. fxe3 {[%emt 0:01:33]} Qxf8 {[%emt 0:01:14]} 16. Rf1 {[%emt 0:01:34]} Qg7 {[%emt 0:01:51]} 17. Qe2 {[%emt 0:01:33]} g4 {[%emt 0:00:44]} 18. Qf2 {[%emt 0:01:42]} Bd7 {[%emt 0:02:19]} 19. Ne2 {[%emt 0:01:19]} Rf8 {[%emt 0:01:41]} 20. Nf4 {[%emt 0:01:42]} h4 {[%emt 0:01:49]} 21. g3 {[%emt 0:02:37]} h3 {[%emt 0:01:21]} 22. Nh5 {[%emt 0:00:52]} Qh6 {[%emt 0:01:22]} 23. Nf4 {[%emt 0:00:09]} 1/2-1/2

[Event "GER-ch Youth U12M 2018"]
[Site "Willingen"]
[Date "2018.05.23"]
[Round "7"]
[White "Werner, Denis"]
[Black "Lutz, Adam"]
[Result "1-0"]
[ECO "B22"]
[WhiteElo "1706"]
[BlackElo "1761"]
[Annotator "NA RC"]
[PlyCount "111"]
[EventDate "2018.05.19"]
[EventType "swiss"]
[EventCountry "GER"]
[SourceTitle "playchess.com"]
[Source "ChessBase"]
[SourceQuality "1"]
[TimeControl "40/4500+30:900+30"]

1. e4 {[%emt 0:00:00]} c5 {[%emt 0:00:04]} 2. c3 {[%emt 0:00:00]} d5 {[%emt 0:00:03]} 3. exd5 {[%emt 0:00:29]} Qxd5 {[%emt 0:00:09]} 4. d4 {[%emt 0:00:41]} e6 {[%emt 0:00:05]} 5. Nf3 {[%emt 0:01:02]} Nf6 {[%emt 0:00:09]} 6. Be2 {[%emt 0:01:07]} Nc6 {[%emt 0:00:38]} 7. O-O {[%emt 0:01:12]} Be7 {[%emt 0:00:42]} 8. c4 {[%emt 0:00:57]} Qd7 {[%emt 0:02:17]} 9. dxc5 {[%emt 0:01:06]} Bxc5 {[%emt 0:01:06]} 10. Nc3 {[%emt 0:01:35]} O-O {[%emt 0:01:11]} 11. a3 {[%emt 0:02:27]} Be7 {[%emt 0:02:05]} 12. b4 {[%emt 0:02:49]} Rd8 {[%emt 0:04:32]} 13. Bb2 {[%emt 0:02:19]} b6 {[%emt 0:02:11]} 14. Qc2 {[%emt 0:03:06]} Bb7 {[%emt 0:00:49]} 15. Rad1 {[%emt 0:00:37]} Qc7 {[%emt 0:02:33]} 16. Bd3 {[%emt 0:04:18]} h6 {[%emt 0:02:31]} 17. Rfe1 {[%emt 0:01:50]} Rd7 {[%emt 0:02:04]} 18. Ne2 {[%emt 0:02:45]} Rad8 {[%emt 0:01:03]} 19. Ng3 {[%emt 0:00:21]} Qb8 {[%emt 0:18:42]} 20. Bc3 {[%emt 0:01:44]} Qa8 {[%emt 0:06:57]} 21. Rd2 {[%emt 0:03:27]} a5 {[%emt 0:12:04]} 22. Ra1 {[%emt 0:04:19]} Kh8 {[%emt 0:12:35]} 23. b5 {[%emt 0:01:30]} Nd4 {[%emt 0:09:17]} 24. Nxd4 {[%emt 0:01:19]} Bxg2 {[%emt 0:00:05]} 25. Bf1 {[%emt 0:03:38]} Be4 {[%emt 0:00:44]} 26. Nxe4 {[%emt 0:01:19]} Qxe4 {[%emt 0:00:02]} 27. Bg2 {[%emt 0:01:05]} Qxc2 {[%emt 0:01:33]} 28. Rxc2 {[%emt 0:00:07]} Rxd4 {[%emt 0:00:03]} 29. Bxd4 {[%emt 0:00:47]} Rxd4 {[%emt 0:00:02]} 30. a4 {[%emt 0:00:56]} Bc5 {[%emt 0:00:54]} 31. Bf3 {[%emt 0:00:24]} Rf4 {[%emt 0:00:26]} 32. Kg2 {[%emt 0:00:28]} Nd7 {[%emt 0:00:54]} 33. Re1 {[%emt 0:00:35]} g5 {[%emt 0:00:35]} 34. Bc6 {[%emt 0:00:42]} Nf6 {[%emt 0:00:24]} 35. f3 {[%emt 0:00:57]} Nh5 {[%emt 0:00:30]} 36. Re4 {[%emt 0:00:50]} Rf6 {[%emt 0:00:47]} 37. Rd2 {[%emt 0:01:48]} Nf4+ {[%emt 0:01:50]} 38. Kf1 {[%emt 0:00:29]} Ng6 {[%emt 0:00:44]} 39. Rd3 {[%emt 0:00:54]} Nf4 {[%emt 0:00:37]} 40. Rd8+ {[%emt 0:00:38]} Kg7 {[%emt 0:15:22]} 41. Re1 {[%emt 0:15:22]} Kg6 {[%emt 0:00:00]} 42. Rc8 {[%emt 0:00:00]} Kh5 {[%emt 0:00:00]} 43. Be4 {[%emt 0:00:00]} e5 {[%emt 0:00:00]} 44. Rb1 {[%emt 0:00:00]} Ne6 {[%emt 0:00:00]} 45. Bd5 {[%emt 0:00:00]} Bd4 {[%emt 0:00:00]} 46. Rc6 {[%emt 0:00:00]} Kh4 {[%emt 0:00:00]} 47. Bxe6 {[%emt 0:00:00]} fxe6 {[%emt 0:00:00]} 48. Ke2 {[%emt 0:00:00]} Kh3 {[%emt 0:00:00]} 49. c5 {[%emt 0:00:00]} Bxc5 {[%emt 0:00:00]} 50. Rxc5 {[%emt 0:00:00]} bxc5 {[%emt 0:00:00]} 51. Kd3 {[%emt 0:00:00]} Rxf3+ {[%emt 0:00:00]} 52. Ke4 {[%emt 0:00:00]} Rf4+ {[%emt 0:00:00]} 53. Kxe5 {[%emt 0:00:00]} Rxa4 {[%emt 0:00:00]} 54. b6 {[%emt 0:00:00]} Rf4 {[%emt 0:00:00]} 55. Rb2 {[%emt 0:00:00]} g4 {[%emt 0:00:00]} 56. Kxf4 {[%emt 0:00:00]} 1-0

[Event "GER-ch Youth U12M 2018"]
[Site "Willingen"]
[Date "2018.05.23"]
[Round "7"]
[White "Phan Trong, Dai"]
[Black "Hagenbeck-Hübert, Ben"]
[Result "1/2-1/2"]
[ECO "A25"]
[WhiteElo "1579"]
[BlackElo "1749"]
[Annotator "NA RC"]
[PlyCount "126"]
[EventDate "2018.05.19"]
[EventType "swiss"]
[EventCountry "GER"]
[SourceTitle "playchess.com"]
[Source "ChessBase"]
[SourceQuality "1"]
[TimeControl "40/4500+30:900+30"]

1. c4 {[%emt 0:00:00]} e5 {[%emt 0:00:06]} 2. Nc3 {[%emt 0:00:00]} Nc6 {[%emt 0:00:18]} 3. g3 {[%emt 0:00:00]} Bc5 {[%emt 0:00:14]} 4. Bg2 {[%emt 0:00:08]} Nge7 {[%emt 0:00:30]} 5. e3 {[%emt 0:01:33]} O-O {[%emt 0:00:23]} 6. Nf3 {[%emt 0:01:22]} d6 {[%emt 0:02:35]} 7. O-O {[%emt 0:00:37]} f5 {[%emt 0:01:07]} 8. d4 {[%emt 0:00:24]} Bb6 {[%emt 0:13:09]} 9. d5 {[%emt 0:02:31]} Nb8 {[%emt 0:00:36]} 10. a3 {[%emt 0:00:56]} Nd7 {[%emt 0:01:22]} 11. b4 {[%emt 0:02:53]} Ng6 {[%emt 0:03:37]} 12. Re1 {[%emt 0:02:04]} Nf6 {[%emt 0:01:41]} 13. Bb2 {[%emt 0:03:00]} e4 {[%emt 0:01:54]} 14. Nd4 {[%emt 0:02:26]} Ne5 {[%emt 0:00:57]} 15. Qb3 {[%emt 0:01:21]} a6 {[%emt 0:04:56]} 16. Na4 {[%emt 0:04:16]} Ba7 {[%emt 0:00:56]} 17. Red1 {[%emt 0:03:31]} Bd7 {[%emt 0:02:06]} 18. c5 {[%emt 0:01:00]} b5 {[%emt 0:12:09]} 19. cxb6 {[%emt 0:03:35]} cxb6 {[%emt 0:00:07]} 20. Nc6 {[%emt 0:00:19]} Qe8 {[%emt 0:03:42]} 21. Bxe5 {[%emt 0:02:57]} dxe5 {[%emt 0:00:39]} 22. Nb2 {[%emt 0:03:19]} Kh8 {[%emt 0:01:18]} 23. Rac1 {[%emt 0:01:30]} b5 {[%emt 0:04:45]} 24. Qc3 {[%emt 0:06:11]} Bb8 {[%emt 0:07:54]} 25. d6 {[%emt 0:06:34]} Bxc6 {[%emt 0:01:24]} 26. Qxc6 {[%emt 0:00:23]} Ra7 {[%emt 0:00:25]} 27. a4 {[%emt 0:02:15]} Qxc6 {[%emt 0:00:36]} 28. Rxc6 {[%emt 0:00:15]} Rd8 {[%emt 0:00:38]} 29. h3 {[%emt 0:02:33]} Kg8 {[%emt 0:03:14]} 30. Bf1 {[%emt 0:04:53]} Kf8 {[%emt 0:09:42]} 31. axb5 {[%emt 0:01:30]} axb5 {[%emt 0:00:05]} 32. Rb6 {[%emt 0:03:37]} Rad7 {[%emt 0:02:26]} 33. Rxb5 {[%emt 0:03:29]} Rxd6 {[%emt 0:01:30]} 34. Rxd6 {[%emt 0:00:37]} Bxd6 {[%emt 0:00:14]} 35. Nc4 {[%emt 0:00:35]} Be7 {[%emt 0:00:16]} 36. Nxe5 {[%emt 0:00:33]} Nd5 {[%emt 0:03:05]} 37. Nc6 {[%emt 0:00:37]} Rd6 {[%emt 0:00:40]} 38. Rc5 {[%emt 0:02:38]} g6 {[%emt 0:01:59]} 39. Nxe7 {[%emt 0:01:40]} Kxe7 {[%emt 0:00:11]} 40. b5 {[%emt 0:00:52]} Kd7 {[%emt 0:15:53]} 41. g4 {[%emt 0:18:04]} f4 {[%emt 0:00:53]} 42. exf4 Nxf4 43. Re5 {[%emt 0:04:18]} Re6 {[%emt 0:01:03]} 44. Rxe6 {[%emt 0:01:00]} Nxe6 {[%emt 0:00:14]} 45. Kg2 {[%emt 0:01:25]} g5 {[%emt 0:00:36]} 46. Kg3 {[%emt 0:00:34]} h6 {[%emt 0:00:10]} 47. Bc4 {[%emt 0:03:04]} Nc5 {[%emt 0:00:12]} 48. f4 {[%emt 0:01:14]} exf3 {[%emt 0:00:00]} 49. Kxf3 {[%emt 0:00:00]} Kd6 {[%emt 0:00:00]} 50. Ke3 {[%emt 0:00:00]} Ke5 {[%emt 0:00:00]} 51. Bd3 {[%emt 0:00:00]} Kd5 {[%emt 0:00:00]} 52. Bf5 {[%emt 0:00:00]} Kc4 {[%emt 0:00:00]} 53. b6 {[%emt 0:00:00]} Kb5 {[%emt 0:00:00]} 54. Kd4 {[%emt 0:00:00]} Kxb6 {[%emt 0:00:00]} 55. Ke5 {[%emt 0:00:00]} Kc7 {[%emt 0:00:00]} 56. Kf6 {[%emt 0:00:00]} Kd8 {[%emt 0:00:00]} 57. Kg6 {[%emt 0:00:00]} Ke7 {[%emt 0:00:00]} 58. Kg7 {[%emt 0:00:00]} Nb7 {[%emt 0:00:00]} 59. Kxh6 {[%emt 0:00:00]} Kf6 {[%emt 0:00:00]} 60. Be6 {[%emt 0:00:00]} Nc5 {[%emt 0:00:00]} 61. Bd5 {[%emt 0:00:00]} Nd3 {[%emt 0:00:00]} 62. Bg2 {[%emt 0:00:00]} Nf4 {[%emt 0:00:00]} 63. Bf1 {[%emt 0:00:00]} Ng6 {[%emt 0:00:00]} 1/2-1/2